Workbook

Sheet Mittelhilfstabelle
A2: Stunde | B2: Wind | C2: Luftfeuchtigkeit | D2: Luftdruck | E2: Taupunkttemperatur | F2: Bewölkung | H2: Stunde | I2: Wind | J2: Luftfeuchtigkeit | K2: Luftdruck | L2: Taupunkttemperatur | M2: Bewölkung
A3: 00 | B3: 2 | C3: 87 | D3: 1031.5 | E3: 5.9 | F3: 6 | H3: 00 | I3: 2 | J3: 90 | K3: 1018 | L3: 6.3 | M3: 0
A4: 01 | B4: 2 | C4: 89 | D4: 1031.5 | E4: 5.5 | F4: 3 | H4: 01 | I4: 1 | J4: 89 | K4: 1017.7 | L4: 6.1 | M4: 1
A5: 02 | B5: 2 | C5: 90 | D5: 1031.5 | E5: 5.5 | F5: 0 | H5: 02 | I5: 2 | J5: 91 | K5: 1017.4 | L5: 6.1 | M5: 1
A6: 03 | B6: 2 | C6: 89 | D6: 1031.7 | E6: 5.5 | F6: 1 | H6: 03 | I6: 2 | J6: 91 | K6: 1017 | L6: 6 | M6: 1
A7: 04 | B7: 2 | C7: 90 | D7: 1031.5 | E7: 6 | F7: 0 | H7: 04 | I7: 2 | J7: 91 | K7: 1016.6 | L7: 5.5 | M7: 1
A8: 05 | B8: 2 | C8: 90 | D8: 1031.5 | E8: 6.1 | F8: 0 | H8: 05 | I8: 1 | J8: 91 | K8: 1016.4 | L8: 5 | M8: 0
A9: 06 | B9: 1 | C9: 92 | D9: 1031.5 | E9: 5.8 | F9: 0 | H9: 06 | I9: 1 | J9: 92 | K9: 1016.1 | L9: 4.6 | M9: 1
A10: 07 | B10: 1 | C10: 93 | D10: 1031.9 | E10: 5.8 | F10: 1 | H10: 07 | I10: 2 | J10: 93 | K10: 1016.1 | L10: 4.7 | M10: 2
A11: 08 | B11: 2 | C11: 94 | D11: 1032.5 | E11: 6.7 | F11: 1 | H11: 08 | I11: 2 | J11: 94 | K11: 1016.2 | L11: 5.4 | M11: 2
A12: 09 | B12: 3 | C12: 91 | D12: 1032.5 | E12: 7.9 | F12: 1 | H12: 09 | I12: 2 | J12: 92 | K12: 1016.2 | L12: 6.7 | M12: 2
A13: 10 | B13: 3 | C13: 82 | D13: 1032.5 | E13: 8.4 | F13: 1 | H13: 10 | I13: 3 | J13: 85 | K13: 1015.6 | L13: 7.2 | M13: 2
A14: 11 | B14: 2 | C14: 71 | D14: 1032.4 | E14: 8.3 | F14: 2 | H14: 11 | I14: 3 | J14: 81 | K14: 1015.8 | L14: 7.7 | M14: 2
A15: 12 | B15: 2 | C15: 65 | D15: 1032.4 | E15: 8.5 | F15: 1 | H15: 12 | I15: 3 | J15: 79 | K15: 1015.5 | L15: 8 | M15: 1
A16: 13 | B16: 3 | C16: 57 | D16: 1031.9 | E16: 7 | F16: 1 | H16: 13 | I16: 3 | J16: 77 | K16: 1015 | L16: 7.8 | M16: 1
A17: 14 | B17: 2 | C17: 57 | D17: 1031.6 | E17: 7.2 | F17: 2 | H17: 14 | I17: 2 | J17: 80 | K17: 1014.8 | L17: 8.2 | M17: 1
A18: 15 | B18: 2 | C18: 61 | D18: 1031.5 | E18: 6.9 | F18: 2 | H18: 15 | I18: 3 | J18: 81 | K18: 1014.6 | L18: 7.6 | M18: 1
A19: 16 | B19: 2 | C19: 64 | D19: 1031.5 | E19: 6.7 | F19: 2 | H19: 16 | I19: 2 | J19: 84 | K19: 1014.5 | L19: 7.2 | M19: 1
A20: 17 | B20: 3 | C20: 67 | D20: 1031.5 | E20: 6.2 | F20: 2 | H20: 17 | I20: 2 | J20: 86 | K20: 1014.4 | L20: 6.6 | M20: 2
A21: 18 | B21: 3 | C21: 70 | D21: 1031.7 | E21: 6.7 | F21: 2 | H21: 18 | I21: 1 | J21: 89 | K21: 1014.4 | L21: 6.1 | M21: 2
A22: 19 | B22: 3 | C22: 70 | D22: 1031.9 | E22: 6.7 | F22: 2 | H22: 19 | I22: 2 | J22: 91 | K22: 1014.3 | L22: 5.7 | M22: 2
A23: 20 | B23: 3 | C23: 72 | D23: 1031.6 | E23: 6.8 | F23: 0 | H23: 20 | I23: 2 | J23: 92 | K23: 1014 | L23: 5.8 | M23: 4
A24: 21 | B24: 3 | C24: 74 | D24: 1032 | E24: 6.4 | F24: 1 | H24: 21 | I24: 2 | J24: 93 | K24: 1013.7 | L24: 5.7 | M24: 5
A25: 22 | B25: 3 | C25: 76 | D25: 1032.3 | E25: 6.2 | F25: 1 | H25: 22 | I25: 2 | J25: 94 | K25: 1013.8 | L25: 5.8 | M25: 7
A26: 23 | B26: 2 | C26: 77 | D26: 1032.3 | E26: 5.9 | F26: 1 | H26: 23 | I26: 2 | J26: 95 | K26: 1014.1 | L26: 6.6 | M26: 7
A27: Mittel | B27: =ROUND(AVERAGE(B3:B26),1) -> 2.3 | C27: =ROUND(AVERAGE(C3:C26),1) -> 77.8 | D27: =ROUND(AVERAGE(D3:D26),1) -> 1031.9 | E27: =AVERAGE(E3:E26) -> 6.608333333 | F27: =ROUND(AVERAGE(F3:F26),1) -> 1.4 | H27: Mittel | I27: =ROUND(AVERAGE(I3:I26),1) -> 2 | J27: =ROUND(AVERAGE(J3:J26),1) -> 88.4 | K27: =ROUND(AVERAGE(K3:K26),1) -> 1015.5 | L27: =AVERAGE(L3:L26) -> 6.35 | M27: =ROUND(AVERAGE(M3:M26),1) -> 2
E29: 2015-10-31 | L29: 2015-10-28
A32: Stunde | B32: Wind | C32: Luftfeuchtigkeit | D32: Luftdruck | E32: Taupunkttemperatur | F32: Bewölkung | H32: Stunde | I32: Wind | J32: Luftfeuchtigkeit | K32: Luftdruck | L32: Taupunkttemperatur | M32: Bewölkung
A33: 00 | B33: 2 | C33: 93 | D33: 1014.2 | E33: 6.7 | F33: 7 | H33: 00 | I33: 0 | J33: 90 | K33: 1025 | L33: 8 | M33: 8
A34: 01 | B34: 2 | C34: 92 | D34: 1014.4 | E34: 6.4 | F34: 6 | H34: 01 | I34: 0 | J34: 91 | K34: 1025.6 | L34: 8 | M34: 8
A35: 02 | B35: 2 | C35: 91 | D35: 1014.6 | E35: 5.4 | F35: 4 | H35: 02 | I35: 0 | J35: 91 | K35: 1026 | L35: 7.9 | M35: 8
A36: 03 | B36: 2 | C36: 93 | D36: 1014.6 | E36: 5 | F36: 4 | H36: 03 | I36: 0 | J36: 92 | K36: 1026.1 | L36: 8 | M36: 8
A37: 04 | B37: 1 | C37: 95 | D37: 1014.8 | E37: 4.9 | F37: 3 | H37: 04 | I37: 1 | J37: 92 | K37: 1026.4 | L37: 8.3 | M37: 8
A38: 05 | B38: 1 | C38: 95 | D38: 1015.1 | E38: 4.5 | F38: 1 | H38: 05 | I38: 1 | J38: 92 | K38: 1026.8 | L38: 8.3 | M38: 8
A39: 06 | B39: 0 | C39: 95 | D39: 1015.4 | E39: 4 | F39: 1 | H39: 06 | I39: 0 | J39: 92 | K39: 1027 | L39: 8.2 | M39: 8
A40: 07 | B40: 1 | C40: 96 | D40: 1015.9 | E40: 4.1 | F40: 1 | H40: 07 | I40: 0 | J40: 93 | K40: 1027.2 | L40: 8 | M40: 8
A41: 08 | B41: 0 | C41: 97 | D41: 1016.8 | E41: 4.5 | F41: 3 | H41: 08 | I41: 1 | J41: 94 | K41: 1027.9 | L41: 8.4 | M41: 8
A42: 09 | B42: 0 | C42: 97 | D42: 1017.4 | E42: 5.7 | F42: 3 | H42: 09 | I42: 0 | J42: 94 | K42: 1028.8 | L42: 8.7 | M42: 7
A43: 10 | B43: 0 | C43: 98 | D43: 1017.7 | E43: 7.5 | F43: 4 | H43: 10 | I43: 1 | J43: 93 | K43: 1029 | L43: 9.1 | M43: 7
A44: 11 | B44: 1 | C44: 85 | D44: 1018.2 | E44: 9.3 | F44: 3 | H44: 11 | I44: 0 | J44: 92 | K44: 1029.3 | L44: 10 | M44: 7
A45: 12 | B45: 1 | C45: 79 | D45: 1018.6 | E45: 8.7 | F45: 6 | H45: 12 | I45: 1 | J45: 89 | K45: 1029.5 | L45: 9.6 | M45: 7
A46: 13 | B46: 0 | C46: 81 | D46: 1019.1 | E46: 9.3 | F46: 7 | H46: 13 | I46: 1 | J46: 86 | K46: 1029.3 | L46: 9.5 | M46: 7
A47: 14 | B47: 2 | C47: 81 | D47: 1019.7 | E47: 8.9 | F47: 6 | H47: 14 | I47: 0 | J47: 87 | K47: 1029.3 | L47: 9.8 | M47: 7
A48: 15 | B48: 2 | C48: 83 | D48: 1020.2 | E48: 8.4 | F48: 8 | H48: 15 | I48: 0 | J48: 86 | K48: 1029.5 | L48: 9.6 | M48: 7
A49: 16 | B49: 2 | C49: 84 | D49: 1020.9 | E49: 8 | F49: 8 | H49: 16 | I49: 1 | J49: 83 | K49: 1029.8 | L49: 8.8 | M49: 7
A50: 17 | B50: 1 | C50: 86 | D50: 1021.6 | E50: 7.8 | F50: 8 | H50: 17 | I50: 1 | J50: 83 | K50: 1030.4 | L50: 8.1 | M50: 7
A51: 18 | B51: 2 | C51: 87 | D51: 1022.6 | E51: 7.8 | F51: 8 | H51: 18 | I51: 2 | J51: 84 | K51: 1030.9 | L51: 7.8 | M51: 8
A52: 19 | B52: 1 | C52: 87 | D52: 1023.1 | E52: 7.7 | F52: 8 | H52: 19 | I52: 1 | J52: 85 | K52: 1031.4 | L52: 7.5 | M52: 8
A53: 20 | B53: 1 | C53: 88 | D53: 1023.4 | E53: 7.7 | F53: 8 | H53: 20 | I53: 2 | J53: 83 | K53: 1031.7 | L53: 6.9 | M53: 8
A54: 21 | B54: 1 | C54: 88 | D54: 1023.8 | E54: 7.9 | F54: 8 | H54: 21 | I54: 2 | J54: 84 | K54: 1031.7 | L54: 6.7 | M54: 8
A55: 22 | B55: 1 | C55: 87 | D55: 1024.1 | E55: 7.8 | F55: 8 | H55: 22 | I55: 2 | J55: 86 | K55: 1031.8 | L55: 5.9 | M55: 8
A56: 23 | B56: 1 | C56: 88 | D56: 1024.8 | E56: 7.9 | F56: 8 | H56: 23 | I56: 2 | J56: 86 | K56: 1031.7 | L56: 6 | M56: 7
A57: Mittel | B57: =ROUND(AVERAGE(B33:B56),1) -> 1.1 | C57: =ROUND(AVERAGE(C33:C56),1) -> 89.4 | D57: =ROUND(AVERAGE(D33:D56),1) -> 1018.8 | E57: =ROUND(AVERAGE(E33:E56),1) -> 6.9 | F57: =ROUND(AVERAGE(F33:F56),1) -> 5.5 | H57: Mittel | I57: =ROUND(AVERAGE(I33:I56),1) -> 0.8 | J57: =ROUND(AVERAGE(J33:J56),1) -> 88.7 | K57: =ROUND(AVERAGE(K33:K56),1) -> 1028.8 | L57: =ROUND(AVERAGE(L33:L56),1) -> 8.2 | M57: =ROUND(AVERAGE(M33:M56),1) -> 7.6
E59: 2015-10-29 | L59: 2015-10-30

Sheet Kurztabelle
A2: Wetterwarte: Köttewitz | L2: Monat: | M2: Oktober | R2: Jahr: | U2: 2015
A4: Dat. | B4: TTT | C4: TxTx | D4: TnTn | E4: Tg | F4: Umin. | G4: UU | H4: NN | I4: RRRR | J4: Art | L4: sss | M4: PPPP | N4: eee | O4: fff | R4: Tage mit | V4: fk | W4: Summe
J5: * | O5: Bft | P5: SS | Q5: Art ( D ) | R5: RR | S5: Ge | T5: Bf6 | U5: Bf8 | V5: Bft | W5: Gewitter
A6: 01. | B6: 7.5 | C6: 15.2 | D6: 1.2 | E6: -0.4 | F6: 55 | G6: 81 | H6: 1.3 | I6: . | L6: 6.2 | M6: 1032.6 | N6: 4.1 | O6: 1 | V6: 4 | AA6: max >=30,0°C | AB6: max >=25,0°C | AC6: max <0,0°C | AE6: RR >=0,1 mm | AF6: RR >=1,0 mm | AG6: RR >=3,0 mm | AH6: RR >=10,0 mm | AI6: RR >=20,0 mm
A7: 02. | B7: 9.2 | C7: 17.4 | D7: 1.4 | E7: -1.5 | F7: 54 | G7: 79 | H7: 1.1 | I7: . | L7: 6.8 | M7: 1026.8 | N7: 5.3 | O7: 1 | V7: 4 | AA7: =COUNTIF(C6:C15,">=30") -> 0 | AB7: =COUNTIF(C6:C15,">=25") -> 0 | AC7: =COUNTIF(C6:C15,"<0") -> 0 | AE7: =COUNTIF(I6:I15,">=0,1") -> 4 | AF7: =COUNTIF(I6:I15,">=1") -> 3 | AG7: =COUNTIF(I6:I15,">=3") -> 2 | AH7: =COUNTIF(I6:I15,">=10") -> 1 | AI7: =COUNTIF(I6:I15,">=20") -> 1
A8: 03. | B8: 13.2 | C8: 19.1 | D8: 7.1 | E8: 2.6 | F8: 61 | G8: 77 | H8: 3.4 | I8: . | L8: 5.1 | M8: 1017 | N8: 9 | O8: 2 | V8: 4 | AA8: =COUNTIF(C18:C27,">=30") -> 0 | AB8: =COUNTIF(C18:C27,">=25") -> 0 | AC8: =COUNTIF(C18:C27,"<0") -> 0 | AE8: =COUNTIF(I18:I27,">=0,1") -> 7 | AF8: =COUNTIF(I18:I27,">=1") -> 6 | AG8: =COUNTIF(I18:I27,">=3") -> 6 | AH8: =COUNTIF(I18:I27,">=10") -> 0 | AI8: =COUNTIF(I18:I27,">=20") -> 0
A9: 04. | B9: 13.8 | C9: 19.8 | D9: 9.5 | E9: 5.9 | F9: 63 | G9: 82 | H9: 5.8 | I9: . | L9: 3.2 | M9: 1015.9 | N9: 11.5 | O9: 1 | V9: 3 | AA9: =COUNTIF(C30:C39,">=30") -> 0 | AB9: =COUNTIF(C30:C39,">=25") -> 0 | AC9: =COUNTIF(C30:C39,"<0") -> 0 | AE9: =COUNTIF(I30:I39,">=0,1") -> 2 | AF9: =COUNTIF(I30:I39,">=1") -> 0 | AG9: =COUNTIF(I30:I39,">=3") -> 0 | AH9: =COUNTIF(I30:I39,">=10") -> 0 | AI9: =COUNTIF(I30:I39,">=20") -> 0
A10: 05. | B10: 13.7 | C10: 19.6 | D10: 8.9 | E10: 5.6 | F10: 64 | G10: 86 | H10: 3.3 | I10: . | L10: 5.7 | M10: 1016.1 | N10: 11.4 | O10: 1 | V10: 3
A11: 06. | B11: 13.9 | C11: 18.3 | D11: 10.3 | E11: - | F11: 73 | G11: 88 | H11: 6.2 | I11: 1.8 | J11: R | L11: 0.6 | M11: 1010 | N11: 11.9 | O11: 2 | R11: 1 | V11: 5 | AA11: min <0,0°C | AB11: min <0-10,0°C | AE11: rel.Lf. 14h >=70% | AG11: rel.Lf. 14h <=40%
A12: 07. | B12: 14.5 | C12: 16.3 | D12: 13.6 | E12: 9.6 | F12: 90 | G12: 97 | H12: 7.9 | I12: 23.6 | J12: R | L12: . | M12: 1012.2 | N12: 14 | O12: 1 | R12: 1 | V12: 3 | AA12: =COUNTIF(D6:D15,"<0") -> 0 | AB12: =COUNTIF(D6:D15,"<=-10") -> 0 | AE12: =COUNTIF(F6:F15,">=70") -> 4 | AG12: =COUNTIF(F6:F15,"<=40") -> 0
A13: 08. | B13: 11.7 | C13: 13.8 | D13: 8.7 | E13: - | F13: 99 | G13: 99 | H13: 8 | I13: 5 | J13: R | L13: . | M13: 1017.6 | N13: 11.7 | O13: 1 | R13: 1 | V13: 3 | AA13: =COUNTIF(D18:D27,"<0") -> 2 | AB13: =COUNTIF(D18:D27,"<=-10") -> 0 | AE13: =COUNTIF(F18:F27,">=70") -> 8 | AG13: =COUNTIF(F18:F27,"<=40") -> 0
A14: 09. | B14: 9.2 | C14: 12.5 | D14: 7.6 | E14: - | F14: 85 | G14: 95 | H14: 7.6 | I14: 0.2 | J14: R | L14: 1.2 | M14: 1021.4 | N14: 8.5 | O14: 1 | R14: 1 | V14: 3 | AA14: =COUNTIF(D30:D39,"<0") -> 0 | AB14: =COUNTIF(D30:D39,"<=-10") -> 0 | AE14: =COUNTIF(F30:F39,">=70") -> 8 | AG14: =COUNTIF(F30:F39,"<=40") -> 0
A15: 10. | B15: 7 | C15: 10.8 | D15: 4.2 | E15: - | F15: 59 | G15: 82 | H15: 3.7 | I15: . | L15: 1.7 | M15: 1021.4 | N15: 4 | O15: 1 | V15: 3
A16: Su | B16: =SUM(B6:B15) -> 113.7 | C16: =SUM(C6:C15) -> 162.8 | D16: =SUM(D6:D15) -> 72.5 | E16: =SUM(E6:E15) -> 21.8 | F16: XXX | G16: XXX | H16: XXX | I16: =SUM(I6:I15) -> 30.6 | J16: XX | L16: =SUM(L6:L15) -> 30.5 | M16: XXX | N16: XXX | O16: XXX | P16: XXX | Q16: X | R16: =SUM(R6:R15) -> 4 | S16: =SUM(S6:S15) -> 0 | T16: =SUM(T6:T15) -> 0 | U16: =SUM(U6:U15) -> 0 | V16: XXX | AA16: ohne Sonne | AB16: Son. 0,1-0,9 | AC16: Son. >=10,0 | AE16: Sch. >=1 cm | AF16: Sch. >=3 cm | AG16: Sch. >=10 cm
A17: Mi | B17: =AVERAGE(B6:B15) -> 11.37 | C17: =AVERAGE(C6:C15) -> 16.28 | D17: 7.25 | E17: 3.633333333 | F17: XXX | G17: 86.6 | H17: 4.83 | I17: XXX | J17: XX | L17: =L16/10 -> 3.05 | M17: =AVERAGE(M6:M15) -> 1019.1 | N17: =AVERAGE(N6:N15) -> 9.14 | O17: =AVERAGE(O6:O15) -> 1.2 | P17: =ROUND(AVERAGE(P6:P15),1) ->  | Q17: X | R17: XX | S17: XX | T17: XX | U17: XX | V17: =AVERAGE(V6:V15) -> 3.5 | AA17: =COUNTIF(L6:L15,".") -> 2 | AB17: =COUNTIF(L6:L15,"<1") -> 1 | AC17: =COUNTIF(L6:L15,">=10") -> 0 | AE17: =COUNTIF(P6:P15,">=1") -> 0 | AF17: =COUNTIF(P6:P15,">=3") -> 0 | AG17: =COUNTIF(P6:P15,">=10") -> 0
A18: 11. | B18: 3.3 | C18: 8.8 | D18: -1.2 | E18: -2.6 | F18: 50 | G18: 75 | H18: 0.6 | I18: . | L18: 5.3 | M18: 1020.9 | N18: -0.8 | O18: 1 | V18: 5 | AA18: =COUNTIF(L18:L27,".") -> 7 | AB18: =COUNTIF(L18:L27,"<1") -> 0 | AC18: =COUNTIF(L18:L27,">=10") -> 0 | AE18: =COUNTIF(P18:P27,">=1") -> 0 | AF18: =COUNTIF(P18:P27,">=3") -> 0 | AG18: =COUNTIF(P18:P27,">=10") -> 0
A19: 12. | B19: 1.9 | C19: 8.8 | D19: -2.8 | E19: -5.4 | F19: 65 | G19: 84 | H19: 1.3 | I19: . | L19: 5.1 | M19: 1021.7 | N19: -0.6 | O19: 1 | V19: 4 | AA19: =COUNTIF(L30:L39,".") -> 2 | AB19: =COUNTIF(L30:L39,"<1") -> 3 | AC19: =COUNTIF(L30:L39,">=10") -> 0 | AE19: =COUNTIF(P30:P39,">=1") -> 0 | AF19: =COUNTIF(P30:P39,">=3") -> 0 | AG19: =COUNTIF(P30:P39,">=10") -> 0
A20: 13. | B20: 3.3 | C20: 5.5 | D20: 0.4 | E20: -3 | F20: 79 | G20: 87 | H20: 8 | I20: 3.3 | J20: R | L20: . | M20: 1019.8 | N20: 1.3 | O20: 1 | R20: 1 | V20: 3
A21: 14. | B21: 3.6 | C21: 4.8 | D21: 1.8 | E21: 0.7 | F21: 89 | G21: 95 | H21: 8 | I21: 8.4 | J21: R | L21: . | M21: 1018.5 | N21: 2.8 | O21: 1 | R21: 1 | V21: 3 | AA21: Max TT | AB21: Max TxTx | AC21: Min TgTg | AE21: Max RR
A22: 15. | B22: 5.9 | C22: 8 | D22: 3.6 | E22: 3.5 | F22: 97 | G22: 98 | H22: 8 | I22: 3.7 | J22: R | L22: . | M22: 1015.3 | N22: 5.5 | O22: 0 | R22: 1 | V22: 2 | AA22: =MAX(B6:B15,B18:B27,B30:B39) -> 14.5 | AB22: =MAX(C6:C15,C18:C27,C30:C39) -> 19.8 | AC22: =MIN(E6:E15,E18:E27,E30:E39) -> -5.4 | AE22: =MAX(I6:I15,I18:I27,I30:I39) -> 23.6
A23: 16. | B23: 7.6 | C23: 8.8 | D23: 6.8 | E23: 3.6 | F23: 93 | G23: 97 | H23: 8 | I23: 4.9 | J23: R | L23: . | M23: 1016.5 | N23: 7.2 | O23: 1 | R23: 1 | V23: 3 | AA23: Min TT | AB23: Min TnTn | AC23: Min U14 | AE23: Max SS
A24: 17. | B24: 7.4 | C24: 8.3 | D24: 6.2 | E24: 5.9 | F24: 97 | G24: 99 | H24: 8 | I24: 3.3 | J24: R | L24: . | M24: 1018.7 | N24: 7.2 | O24: 0 | R24: 1 | V24: 2 | AA24: =MIN(B6:B15,B18:B27,B30:B39) -> 1.9 | AB24: =MIN(D6:D15,D18:D27,D30:D39) -> -2.8 | AC24: =MIN(F6:F15,F18:F27,F30:F39) -> 50 | AE24: =MAX(P6:P15,P18:P27,P30:P39) -> 0
A25: 18. | B25: 7.7 | C25: 10.1 | D25: 5.7 | E25: - | F25: 86 | G25: 96 | H25: 7.5 | I25: 0.2 | J25: R | L25: . | M25: 1019.3 | N25: 7 | O25: 1 | R25: 1 | V25: 3
A26: 19. | B26: 7.2 | C26: 10.7 | D26: 4.4 | E26: - | F26: 81 | G26: 94 | H26: 6 | I26: . | L26: 1.1 | M26: 1020.7 | N26: 6.3 | O26: 1 | V26: 3
A27: 20. | B27: 6.6 | C27: 8.7 | D27: 2.4 | E27: -0.5 | F27: 88 | G27: 97 | H27: 7.5 | I27: 5.3 | J27: R | L27: . | M27: 1020.5 | N27: 6.1 | O27: 1 | R27: 1 | V27: 3
A28: Su | B28: =SUM(B18:B27) -> 54.5 | C28: =SUM(C18:C27) -> 82.5 | D28: =SUM(D18:D27) -> 27.3 | E28: =SUM(E18:E27) -> 2.2 | F28: XXX | G28: XXX | H28: XXX | I28: =SUM(I18:I27) -> 29.1 | J28: XX | L28: =SUM(L18:L27) -> 11.5 | M28: XXX | N28: XXX | O28: XXX | P28: XXX | Q28: X | R28: =SUM(R18:R27) -> 7 | S28: =SUM(S18:S27) -> 0 | T28: =SUM(T18:T27) -> 0 | U28: =SUM(U18:U27) -> 0 | V28: XXX
A29: Mi | B29: =AVERAGE(B18:B27) -> 5.45 | C29: =AVERAGE(C18:C27) -> 8.25 | D29: 2.73 | E29: 0.275 | F29: 82.5 | G29: 92.2 | H29: 6.29 | I29: XXX | J29: XX | L29: =L28/10 -> 1.15 | M29: =AVERAGE(M18:M27) -> 1019.19 | N29: =AVERAGE(N18:N27) -> 4.2 | O29: =AVERAGE(O18:O27) -> 0.8 | P29: =ROUND(AVERAGE(P18:P27),1) ->  | Q29: X | R29: XX | S29: XX | T29: XX | U29: XX | V29: =AVERAGE(V18:V27) -> 3.1
A30: 21. | B30: 8.4 | C30: 9.7 | D30: 7.6 | E30: - | F30: 84 | G30: 94 | H30: 8 | I30: 0.1 | J30: R | L30: . | M30: 1020.1 | N30: 7.4 | O30: 1 | R30: 1 | V30: 4
A31: 22. | B31: 9.7 | C31: 13.1 | D31: 5.9 | E31: 2.6 | F31: 70 | G31: 84 | H31: 7.3 | I31: 0.5 | J31: R | L31: 0.1 | M31: 1016.4 | N31: 7 | O31: 1 | R31: 1 | V31: 4
A32: 23. | B32: 10.1 | C32: 13.8 | D32: 4.6 | E32: - | F32: 66 | G32: 84 | H32: 5.1 | I32: . | L32: 1 | M32: 1022.5 | N32: 7.6 | O32: 2 | V32: 5
A33: 24. | B33: 7.1 | C33: 15.3 | D33: 1.7 | E33: -1.5 | F33: 67 | G33: 89 | H33: 2.9 | I33: . | L33: 4.1 | M33: 1021.5 | N33: 5.3 | O33: 1 | V33: 4
A34: 25. | B34: 10.1 | C34: 13.3 | D34: 6.8 | E34: - | F34: 76 | G34: 91 | H34: 7.3 | I34: 0 | L34: 0.3 | M34: 1023.4 | N34: 8.5 | O34: 1 | V34: 3
A35: 26. | B35: 9.2 | C35: 13.6 | D35: 5.2 | E35: - | F35: 73 | G35: 91 | H35: 5.1 | I35: . | L35: 2.3 | M35: 1025.2 | N35: 7.9 | O35: 1 | V35: 3
A36: 27. | B36: 9.4 | C36: 13.8 | D36: 4.2 | E36: 1.2 | F36: 76 | G36: 86 | H36: 4.3 | I36: . | L36: 1.1 | M36: 1020.9 | N36: 7.1 | O36: 2 | T36: 1 | V36: 6
A37: 28. | B37: 8.2 | C37: 11.9 | D37: 5.7 | E37: 0.7 | F37: 77 | G37: 88 | H37: 2 | I37: . | L37: 4.3 | M37: 1015.5 | N37: 6.4 | O37: 2 | V37: 5
A38: 29. | B38: 8.7 | C38: 12.6 | D38: 4.7 | E38: 0.6 | F38: 77 | G38: 89 | H38: 5.5 | I38: . | L38: 0.7 | M38: 1018.8 | N38: 6.9 | O38: 1 | V38: 3
A39: 30. | B39: 9.9 | C39: 13.3 | D39: 7.8 | E39: - | F39: 81 | G39: 89 | H39: 7.6 | I39: . | L39: . | M39: 1028.8 | N39: 8.2 | O39: 1 | V39: 4
A40: 31. | B40: 10.5 | C40: 15.9 | D40: 6.7 | E40: 2.1 | F40: 52 | G40: 78 | H40: 1.4 | I40: . | L40: 4.1 | M40: 1031.9 | N40: 6.6 | O40: 2 | T40: 1 | V40: 6
A41: Su | B41: =SUM(B30:B40) -> 101.3 | C41: =SUM(C30:C40) -> 146.3 | D41: 60.9 | E41: 5.7 | F41: XXX | G41: XXX | H41: XXX | I41: =SUM(I30:I40) -> 0.6 | J41: XX | L41: =SUM(L30:L40) -> 18 | M41: XXX | N41: XXX | O41: XXX | P41: XXX | Q41: X | R41: =SUM(R30:R40) -> 2 | S41: =SUM(S30:S40) -> 0 | T41: 2 | U41: 0 | V41: XXX
A42: Mi | B42: =AVERAGE(B30:B40) -> 9.209090909 | C42: =AVERAGE(C30:C40) -> 13.3 | D42: 5.536363636 | E42: 0.95 | F42: XXX | G42: =AVERAGE(G30:G40) -> 87.54545455 | H42: =AVERAGE(H30:H40) -> 5.136363636 | I42: XXX | J42: XX | L42: XXX | M42: =AVERAGE(M30:M40) -> 1022.272727 | N42: =AVERAGE(N30:N40) -> 7.172727273 | O42: 1.363636364 | Q42: X | R42: XX | S42: XX | T42: XX | U42: XX | V42: =AVERAGE(V30:V40) -> 4.272727273
A43: MSu | B43: =SUM(B16+B28+B41) -> 269.5 | C43: =SUM(C16+C28+C41) -> 391.6 | D43: =SUM(D16+D28+D41) -> 160.7 | E43: =SUM(E16+E28+E41) -> 29.7 | F43: XXX | G43: XXX | H43: XXX | I43: =SUM(I16+I28+I41) -> 60.3 | J43: XX | L43: =SUM(L16+L28+L41) -> 60 | M43: XXX | N43: XXX | O43: XXX | P43: XXX | Q43: X | R43: =SUM(R16+R28+R41) -> 13 | S43: =SUM(S16+S28+S41) -> 0 | T43: =SUM(T16+T28+T41) -> 2 | U43: =SUM(U16+U28+U41) -> 0 | V43: XXX
A44: MMi | B44: =AVERAGE(B6:B15,B18:B27,B30:B40) -> 8.693548387 | C44: =AVERAGE(C6:C15,C18:C27,C30:C40) -> 12.63225806 | D44: 5.183870968 | E44: 1.485 | F44: XXX | G44: =AVERAGE(G6:G15,G18:G27,G30:G40) -> 88.74193548 | H44: =AVERAGE(H6:H15,H18:H27,H30:H40) -> 5.409677419 | I44: XXXXX | J44: XX | L44: XXXX | M44: =AVERAGE(M6:M15,M18:M27,M30:M40) -> 1020.254839 | N44: =AVERAGE(N6:N15,N18:N27,N30:N40) -> 6.848387097 | O44: =AVERAGE(O6:O15,O18:O27,O30:O40) -> 1.129032258 | P44: =ROUND(AVERAGE(P6:P15,P18:P27,P30:P39),1) ->  | Q44: X | R44: XX | S44: XX | T44: XX | U44: XX | V44: =AVERAGE(V17,V29,V42) -> 3.624242424
B46: Norm | C46: % v N.- | D46: Abw. | E46: Zahl der Tage | L46: Niederschlag mm | P46: Sonnensch.-dauer Std
B47: wert | C47: wert | D47: K | E47: Max.d.Lufttemp.°C | L47: >/= 0,1 | O47: =SUM(AE7:AE9) -> 13 | P47: ohne Sonne | V47: =SUM(AA17:AA19) -> 11
A48: TTT | B48: 9.8 | C48: XXXX | D48: =SUM(B44-B48) -> -1.106451613 | E48: Tropentag/Hitzetag | I48: =SUM(AA7:AA9) -> 0 | L48: >/= 1,0 | O48: =SUM(AF7:AF9) -> 9 | P48: 0,1 bis 0,9 | V48: =SUM(AB17:AB19) -> 4
A49: RRR | B49: 43 | C49: =SUM(I43*100/B49) -> 140.2325581 | D49: XXXX | E49: Sommertag | I49: =SUM(AB7:AB9) -> 0 | L49: >/= 3,0 | O49: =SUM(AG7:AG9) -> 8 | P49: >/= 10,0 | V49: =SUM(AC17:AC19) -> 0
A50: sss | B50: 120 | C50: =SUM(L43*100/B50) -> 50 | D50: XXXX | E50: Eistag | I50: =SUM(AC7:AC9) -> 0 | L50: >/=10,0 | O50: =SUM(AH7:AH9) -> 1 | P50: Schneedecke cm
A51: astr. | D51: XXXX | E51: Polartag | I51: 0 | L51: >/= 20,0 | O51: =SUM(AI7:AI9) -> 1 | P51: >/= 1 | V51: =SUM(AE17:AE19) -> 0
A52: mgl. | B52: 333 | C52: =SUM(L43*100/B52) -> 18.01801802 | D52: XXXX | E52: Min.d.Lufttemp.°C | L52: Rel. Luftfeuchte 14 Uhr | P52: >/= 3 | V52: =SUM(AF17:AF19) -> 0
A53: sss | D53: XXXX | E53: Frosttag | I53: =SUM(AA12:AA14) -> 2 | L53: >/=70% | O53: =SUM(AE12:AE14) -> 20 | P53: >/= 10 | V53: =SUM(AG17:AG19) -> 0
E54: Tropennacht | I54: 0 | L54: </=40% | O54: =SUM(AG12:AG14) -> 0
E57: Unter "Tage mit" sind die Angaben Bft 6 & Bft 8 nicht 10 min. - Mittel sonder 2,5 s - Werte.
E58: Wenn ein Wert auch mit einem 10 min. - Wert erreicht wird, erfolgt eine rote Markierung.
E59: Dies gilt rückwirkend auf November 2012.
F113: Tage mit Bft 6 /8 eigentlich in 10 min. - Mittel

Sheet Sichtst.
E1: Sichtweitenstatistik
B5: Wetterstation: Köttewitz | F5: Monat: | G5: Oktober | K5: Jahr: | L5: 2015
A7: Dat. | B7: Nebeldauer | C7: Nebel | D7: Dunst | E7: Sicht | F7: Sicht | G7: Sicht | H7: Sicht
B8: in St. u. Min. | E8: mittel | F8: normal | G8: gut | H8: sehr gut
A9: 01. | B9: - | C9: - | D9: - | E9: - | F9: 1 | G9: 1 | H9: - | N9: =IF(ISNUMBER(B9),B9*24," ") ->  | O9: =IF(ISNUMBER(N9),IF(N9<1,1," ")," ") ->  | P9: =IF(ISNUMBER(N9),IF(N9<8,2," ")," ") ->  | Q9: =IF(ISNUMBER(N9),IF(N9<24,3," ")," ") ->  | R9: =MIN(O9:Q9) -> 0
A10: 02. | B10: - | C10: =IF(R10=1,1,"-") -> - | D10: - | E10: - | F10: 1 | G10: 1 | H10: - | R10: 0
A11: 03. | B11: - | C11: - | D11: - | E11: - | F11: 1 | G11: - | H11: - | R11: 0
A12: 04. | B12: - | C12: =IF(R12=1,1,"-") -> - | D12: - | E12: - | F12: 1 | G12: - | H12: - | R12: 0
A13: 05. | B13: - | C13: =IF(R13=1,1,"-") -> - | D13: - | E13: 1 | F13: 1 | G13: - | H13: - | R13: 0
A14: 06. | B14: - | C14: - | D14: - | E14: 1 | F14: 1 | G14: - | H14: - | R14: 0
A15: 07. | B15: - | C15: - | D15: 1 | E15: 1 | F15: - | G15: - | H15: - | R15: 0
A16: 08. | B16: 00:10:00 | C16: 1 | D16: 1 | E16: - | F16: - | G16: - | H16: - | N16: 0.1666666667 | O16: 1 | P16: 2 | Q16: 3 | R16: 1
A17: 09. | B17: - | C17: - | D17: 1 | E17: 1 | F17: 1 | G17: - | H17: - | R17: 0
A18: 10. | B18: - | C18: - | D18: - | E18: 1 | F18: 1 | G18: - | H18: - | R18: 0
A19: 11. | B19: - | C19: - | D19: - | E19: - | F19: 1 | G19: - | H19: - | R19: 0
A20: 12. | B20: - | C20: - | D20: - | E20: - | F20: 1 | G20: - | H20: - | R20: 0
A21: 13. | B21: - | C21: - | D21: - | E21: 1 | F21: 1 | G21: - | H21: - | R21: 0
A22: 14. | B22: - | C22: =IF(R22=1,1,"-") -> - | D22: 1 | E22: 1 | F22: - | G22: - | H22: - | R22: 0
A23: 15. | B23: - | C23: - | D23: 1 | E23: - | F23: - | G23: - | H23: - | R23: 0
A24: 16. | B24: - | C24: - | D24: 1 | E24: 1 | F24: - | G24: - | H24: - | R24: 0
A25: 17. | B25: - | C25: - | D25: 1 | E25: 1 | F25: - | G25: - | H25: - | R25: 0
A26: 18. | B26: - | C26: - | D26: 1 | E26: 1 | F26: - | G26: - | H26: - | R26: 0
A27: 19. | B27: - | C27: - | D27: 1 | E27: 1 | F27: 1 | G27: - | H27: - | R27: 0
A28: 20. | B28: - | C28: - | D28: 1 | E28: 1 | F28: - | G28: - | H28: - | R28: 0
A29: 21. | B29: - | C29: - | D29: 1 | E29: 1 | F29: - | G29: - | H29: - | R29: 0
A30: 22. | B30: - | C30: - | D30: - | E30: 1 | F30: 1 | G30: - | H30: - | R30: 0
A31: 23. | B31: - | C31: - | D31: - | E31: - | F31: 1 | G31: - | H31: - | R31: 0
A32: 24. | B32: - | C32: - | D32: 1 | E32: 1 | F32: 1 | G32: - | H32: - | R32: 0
A33: 25. | B33: - | C33: - | D33: 1 | E33: 1 | F33: 1 | G33: - | H33: - | R33: 0
A34: 26. | B34: 05:09:00 | C34: 1 | D34: 1 | E34: 1 | F34: 1 | G34: - | H34: - | N34: 5.15 | P34: 2 | Q34: 3 | R34: 2
A35: 27. | B35: - | C35: - | D35: - | E35: - | F35: 1 | G35: - | H35: - | R35: 0
A36: 28. | B36: - | C36: - | D36: - | E36: 1 | F36: 1 | G36: - | H36: - | R36: 0
A37: 29. | B37: - | C37: - | D37: 1 | E37: 1 | F37: - | G37: - | H37: -
A38: 30. | B38: - | C38: - | D38: 1 | E38: 1 | F38: - | G38: - | H38: -
A39: 31. | B39: - | C39: - | D39: - | E39: 1 | F39: 1 | G39: - | H39: -
A40: Su. | B40: =SUM(B9:B39) -> 05:19:00 | C40: 2 | D40: 16 | E40: 21 | F40: 20 | G40: 2 | H40: 0
B42: Anzahl der Nebeltage : | E42: =SUM(C40) -> 2
B43: Anzahl der Tage Sicht >= 50 km : | E43: =SUM(G40) -> 2

Sheet Monatsdiagramm
A1: Klimadiagramm | C1: Wetterstation Köttewitz | I1: (211 m ü. NHN)
A3: Oktober 2015
C5: aktuell | D5: langj. Mittel | E5: Abw. vom lj. Mittel
B6: höchste Temperatur (°C): | C6: =MAX('Daten für Diagr.'!C2:C32) -> 19.8 | D6: am | E6: 2015-10-04
B7: mittlere Temperatur (°C): | C7: ='Daten für Diagr.'!B33 -> 8.693548387 | D7: =Kurztabelle!B48 -> 9.8 | E7: =C7-D7 -> -1.106451613 | F7: K
B8: tiefste Temperatur (°C): | C8: =MIN('Daten für Diagr.'!D2:D32) -> -2.8 | D8: am | E8: 2015-10-12
B9: Niederschlagshöhe (mm): | C9: =Kurztabelle!I43 -> 60.3 | D9: =Kurztabelle!B49 -> 43 | E9: =100/D9*C9 -> 140.2325581 | F9: %
B10: Sonnenscheindauer (Std.)*: | C10: =Kurztabelle!L43 -> 60 | D10: =Kurztabelle!B50 -> 120 | E10: =100/D10*C10 -> 50 | F10: %
A66: *Die Wetterstation kann, durch geographische Hindernisse, nicht die maximal mögliche Sonnenscheindauer aufzeichnen. Es gilt ein Übergangsprozentsatz von: Dez 30 %; Okt/Nov & Jan/Feb 40 %; Mär & Sep 65 %; Apr 80 %; Mai - August 90 %.
A67: Diese Werte entsprechend annähernd 100 % (Normalwert Köttewitz). Nach 10 Jahren erfolgt die Umstellung des Prozentsatzes nach der örtlichen Aufzeichnung.

Sheet Daten für Diagr.
B1: Td | C1: Tmax | D1: Tmin | E1: RR | F1: Schnee | G1: Sonne | H1: Luftdr. | I1: MWT | J1: GWL | K1: Name | L1: Sonstiges
A2: 2015-10-01 | B2: 7.5 | C2: 15.2 | D2: 1.2 | G2: 6.2 | H2: 1032.6 | I2: 12.05 | L2: Morgens Elbtalnebel (WW 40).
A3: 2015-10-02 | B3: 9.2 | C3: 17.4 | D3: 1.4 | G3: 6.8 | H3: 1026.8 | I3: 11.9 | J3: SEa
A4: 2015-10-03 | B4: 13.2 | C4: 19.1 | D4: 7.1 | G4: 5.1 | H4: 1017 | I4: 11.75
A5: 2015-10-04 | B5: 13.8 | C5: 19.8 | D5: 9.5 | G5: 3.2 | H5: 1015.9 | I5: 11.6 | J5: Sz | K5: T Quirin
A6: 2015-10-05 | B6: 13.7 | C6: 19.6 | D6: 8.9 | G6: 5.7 | H6: 1016.1 | I6: 11.45
A7: 2015-10-06 | B7: 13.9 | C7: 18.3 | D7: 10.3 | E7: 1.8 | G7: 0.6 | H7: 1010 | I7: 11.3 | J7: Wz | K7: T Rolf
A8: 2015-10-07 | B8: 14.5 | C8: 16.3 | D8: 13.6 | E8: 23.6 | H8: 1012.2 | I8: 11.15 | J8: Ww | L8: Von 05:20 Uhr - 06:49 Uhr; 07:30 Uhr - 13:09 Uhr; 15:00 Uhr - 15:29 Uhr; 16:50 Uhr - 20:09 Uhr; 22:40 Uhr - 23:59 Uhr mäßiger Regen (WW 63). Von 06:50 Uhr - 07:29 Uhr; 13:10 Uhr - 14:59 Uhr; 15:30 Uhr - 16:49 Uhr; 20:10 Uhr - 22:39 Uhr leichter Regen (WW 61). Leicht schwül.
A9: 2015-10-08 | B9: 11.7 | C9: 13.8 | D9: 8.7 | E9: 5 | H9: 1017.6 | I9: 11 | L9: Von 00:00 Uhr - 08:59 Uhr; 10:40 Uhr - 11:19 Uhr; 12:00 Uhr - 12:59 Uhr mäßiger Regen (WW 63). Von 09:00 Uhr - 10:39 Uhr; 11:20 Uhr - 11:59 Uhr; 13:00 Uhr - 13:59 Uhr leichter Regen (WW 61). Gegen 13:45 Uhr leichter Nebel (WW 45).
A10: 2015-10-09 | B10: 9.2 | C10: 12.5 | D10: 7.6 | E10: 0.2 | G10: 1.2 | H10: 1021.4 | I10: 10.85 | J10: HFa | K10: H Oldenburga | L10: Von 04:00 Uhr - 07:59 Uhr leichter Sprühregen (WW 51).
A11: 2015-10-10 | B11: 7 | C11: 10.8 | D11: 4.2 | G11: 1.7 | H11: 1021.4 | I11: 10.7
A12: 2015-10-11 | B12: 3.3 | C12: 8.8 | D12: -1.2 | G12: 5.3 | H12: 1020.9 | I12: 10.55
A13: 2015-10-12 | B13: 1.9 | C13: 8.8 | D13: -2.8 | G13: 5.1 | H13: 1021.7 | I13: 10.4 | L13: Morgens Elbtalnebel (WW 40).
A14: 2015-10-13 | B14: 3.3 | C14: 5.5 | D14: 0.4 | E14: 3.3 | H14: 1019.8 | I14: 10.25 | J14: HFz
A15: 2015-10-14 | B15: 3.6 | C15: 4.8 | D15: 1.8 | E15: 8.4 | H15: 1018.5 | I15: 10.1 | J15: SEz | K15: T Stefan | L15: Von 04:30 Uhr - 06:49 Uhr; 07:50 Uhr - 08:59 Uhr; 12:10 Uhr - 13:09 Uhr mäßiger Regen (WW 63). Von 09:00 Uhr - 11:19 Uhr mäßiger Regen (WW 62). Von 03:20 Uhr - 04:29 Uhr; 07:50 Uhr - 07:49 Uhr; 11:20 Uhr - 12:09 Uhr; 13:10 Uhr - 13:19 Uhr; Gegen 23:20 Uhr leichter Regen (WW 61).
A16: 2015-10-15 | B16: 5.9 | C16: 8 | D16: 3.6 | E16: 3.7 | H16: 1015.3 | I16: 9.95 | L16: Von 02:50 Uhr - 03:59 Uhr; 06:10 Uhr - 06:39 Uhr; 10:10 Uhr - 11:09 Uhr mäßiger Regen (WW 63). Von 00:00 Uhr - 02:49 Uhr; 04:00 Uhr - 06:09 Uhr; 06:40 Uhr - 07:29 Uhr; 09:20 Uhr - 10:09 Uhr leichter Regen (WW 61). Von 07:30 Uhr - 09:19 Uhr; 11:10 Uhr - 11:49 Uhr; 20:00 Uhr - 23:59 Uhr mäßiger Sprühregen (WW 53). Von 11:50 Uhr - 19:59 Uhr leichter Sprühregen (WW 51).
A17: 2015-10-16 | B17: 7.6 | C17: 8.8 | D17: 6.8 | E17: 4.9 | H17: 1016.5 | I17: 9.8 | L17: Von 17:50 Uhr - 19:49 Uhr; 20:20 Uhr - 20:49 Uhr mäßiger Regen (WW 63). Von 04:50 Uhr - 06:29 Uhr; 10:20 Uhr - 11:29 Uhr; 17:40 Uhr - 17:49 Uhr; 19:50 Uhr - 20:19 Uhr; 20:50 Uhr - 23:59 Uhr leichter Regen (WW 61). Von 00:00 Uhr - 04:49 Uhr mäßiger Sprühregen (WW 53). Gegen 15:45 Uhr leichter Sprühregen (WW 51).
A18: 2015-10-17 | B18: 7.4 | C18: 8.3 | D18: 6.2 | E18: 3.3 | H18: 1018.7 | I18: 9.65 | L18: Von 14:00 Uhr - 14:59 Uhr mäßiger Regen (WW 63). Von 00:00 Uhr - 06:09 Uhr; 12:50 Uhr - 13:59 Uhr; 15:00 Uhr - 16:09 Uhr leichter Regen (WW 61). Gegen 09:50 Uhr; 11:20 Uhr - 12:49 Uhr; 16:10 Uhr - 16:49 Uhr mäßiger Sprühregen (WW 55).
A19: 2015-10-18 | B19: 7.7 | C19: 10.1 | D19: 5.7 | E19: 0.2 | H19: 1019.3 | I19: 9.5 | L19: Gegen 18:00 Uhr leichter Regen (WW 61).
A20: 2015-10-19 | B20: 7.2 | C20: 10.7 | D20: 4.4 | G20: 1.1 | H20: 1020.7 | I20: 9.35 | J20: BM | K20: H Quinta
A21: 2015-10-20 | B21: 6.6 | C21: 8.7 | D21: 2.4 | E21: 5.3 | H21: 1020.5 | I21: 9.2 | L21: Von 13:10 Uhr - 15:09 Uhr; 16:20 Uhr - 17:39 Uhr; 18:10 Uhr - 19:19 Uhr; 23:20 Uhr - 23:59 Uhr mäßiger Regen (WW 63). Von 15:10 Uhr - 16:19 Uhr mäßiger Regen, unterbrochen (WW 62). Von 10:50 Uhr - 13:09 Uhr; 17:40 Uhr - 18:09 Uhr; 19:20 Uhr - 23:19 Uhr leichter Regen (WW 61). Gegen 10:30 Uhr Regentropfen (WW 60).
A22: 2015-10-21 | B22: 8.4 | C22: 9.7 | D22: 7.6 | E22: 0.1 | H22: 1020.1 | I22: 9.05 | L22: Von 00:00 Uhr - 03:39 Uhr; Gegen 13:15 Uhr leichter Regen (WW 61).
A23: 2015-10-22 | B23: 9.7 | C23: 13.1 | D23: 5.9 | E23: 0.5 | G23: 0.1 | H23: 1016.4 | I23: 8.9 | L23: Gegen 21:00 Uhr; 23:00 Uhr leichter Regen (WW 61).
A24: 2015-10-23 | B24: 10.1 | C24: 13.8 | D24: 4.6 | G24: 1 | H24: 1022.5 | I24: 8.75 | L24: Gegen 01:30 Uhr leichter Regen (WW 61).
A25: 2015-10-24 | B25: 7.1 | C25: 15.3 | D25: 1.7 | G25: 4.1 | H25: 1021.5 | I25: 8.6
A26: 2015-10-25 | B26: 10.1 | C26: 13.3 | D26: 6.8 | G26: 0.3 | H26: 1023.4 | I26: 8.45 | J26: Wa | K26: H Sophie
A27: 2015-10-26 | B27: 9.2 | C27: 13.6 | D27: 5.2 | G27: 2.3 | H27: 1025.2 | I27: 8.3 | J27: SEa | L27: Von 04:40 Uhr - 08:09 Uhr mäßiger Nebel (200 m), Himmel sichtbar (WW 44). Von 03:00 Uhr - 04:39 Uhr leichter Nebel, Himmel sichtbar (WW 44).
A28: 2015-10-27 | B28: 9.4 | C28: 13.8 | D28: 4.2 | G28: 1.1 | H28: 1020.9 | I28: 8.15
A29: 2015-10-28 | B29: 8.2 | C29: 11.9 | D29: 5.7 | G29: 4.3 | H29: 1015.5 | I29: 8 | J29: Sa | K29: H Tomoka
A30: 2015-10-29 | B30: 8.7 | C30: 12.6 | D30: 4.7 | G30: 0.7 | H30: 1018.8 | I30: 7.85
A31: 2015-10-30 | B31: 9.9 | C31: 13.3 | D31: 7.8 | H31: 1028.8 | I31: 7.7
A32: 2015-10-31 | B32: 10.5 | C32: 15.9 | D32: 6.7 | G32: 4.1 | H32: 1031.9 | I32: 7.55
A33: Durchschnitt | B33: =AVERAGE(B2:B32) -> 8.693548387 | C33: =AVERAGE(C2:C32) -> 12.63225806 | D33: =AVERAGE(D2:D32) -> 5.183870968 | E33: - | G33: =AVERAGE(G2:G32) -> 3 | H33: =AVERAGE(H2:H32) -> 1020.254839 | I33: =AVERAGE(I2:I32) -> 9.8
A34: Mittel | B34: 9.8 | E34: 43 | F34: - | G34: 120 | H34: 1017.2
A90: 1
A91: 2
A92: 3
A93: 4
A94: 5
A95: 6
A96: 7
A97: 8
A98: 9
A99: 10
A100: 11
A101: 12
A102: 13
A103: 14
A104: 15
A105: 16
A106: 17
A107: 18
A108: 19
A109: 20
A110: 21
A111: 22
A112: 23
A113: 24
A114: 25
A115: 26
A116: 27
A117: 28
A118: 29
A119: 30
A120: 31
